bitfinex/quotes_ETHUSD_20250822
["timestamp","ask_amount","ask_price","bid_price","bid_amount"]
[1755896301286,0.00047816,4846.9,4846.8,1.36848]
[1755896301989,0.00047816,4846.9,4846.8,3.20240239]
[1755896302161,0.00047816,4846.9,4846.8,1.36848]
[1755896302364,0.00047816,4846.9,4846.8,1.38911216]
[1755896302555,0.00047816,4846.9,4846.8,1.36848]
[1755896303482,0.20047816,4846.9,4846.8,1.36848]
[1755896304557,0.20047816,4846.9,4846.8,1.38911216]
[1755896304968,0.002,4847.0,4846.8,1.38911216]
[1755896305173,0.002,4847.0,4846.9,0.4462]
[1755896305480,0.002,4847.0,4846.9,0.7571]
[1755896307161,0.022,4847.8,4846.9,12.717247]
[1755896307468,0.022,4847.8,4847.6,16.91029946]
[1755896307654,0.022,4847.8,4847.6,17.32439946]
[1755896307860,0.022,4847.8,4847.6,17.77059946]
[1755896308973,0.022,4847.8,4847.6,21.43259946]
[1755896310291,0.022,4847.8,4847.6,23.2635694]
[1755896310890,0.022,4847.8,4847.6,23.3461634]
[1755896311187,0.00048296,4847.7,4847.6,23.3461634]
[1755896312984,0.00048296,4847.7,4847.6,22.8999634]
[1755896313190,0.00048296,4847.7,4847.6,4.158694]
[1755896313387,0.00048296,4847.7,4847.6,0.185794]
[1755896313562,0.00048296,4847.7,4847.6,0.96352276]
[1755896313988,0.00048296,4847.7,4847.6,0.51732276]
[1755896314184,0.00048296,4847.7,4847.6,0.496694]
[1755896315463,0.002,4848.7,4847.6,0.86032276]
[1755896315660,0.002,4848.7,4847.8,1.83096994]
[1755896315989,0.002,4848.7,4847.8,2.14186994]
[1755896316195,0.002,4848.7,4847.8,2.58806994]
[1755896316897,0.002,4848.7,4847.8,4.40829085]
[1755896317800,0.002,4848.7,4847.8,2.57732091]
[1755896319315,0.002,4848.7,4847.8,29.21820291]
[1755896319509,0.002,4848.7,4847.9,17.35649946]
[1755896319673,0.002,4848.7,4847.9,17.66739946]
[1755896321397,0.002,4848.7,4848.1,1.239]
[1755896321605,0.002,4848.7,4848.6,17.22119946]
[1755896321766,0.002,4848.7,4848.6,0.3109]
[1755896321971,0.002,4848.7,4848.6,3.656]
[1755896322169,0.002,4848.7,4848.6,5.56936696]
[1755896322370,0.002,4848.7,4848.6,5.88026696]
[1755896322566,0.002,4848.7,4848.6,6.32646696]
[1755896322767,0.002,4848.7,4848.6,4.495683]
[1755896323003,0.002,4848.7,4848.6,4.07010751]
[1755896323171,0.002,4848.7,4848.6,4.049483]
[1755896323372,0.002,4848.7,4848.6,0.082583]
[1755896323594,0.002,4848.7,4848.6,5.56775305]
[1755896323794,0.002,4848.7,4848.6,5.87865305]
[1755896323995,0.3066,4848.7,4848.6,1.91275305]
[1755896324309,0.7478,4848.7,4848.6,3.737583]
[1755896324681,0.7478,4848.7,4848.6,0.082583]
[1755896325075,0.7478,4848.7,4848.3,1.46507897]
[1755896325275,0.3066,4848.7,4848.2,1.46507897]
[1755896325499,0.4412,4848.6,4848.5,0.1032]
[1755896325803,0.7458,4848.6,4848.5,0.1032]
[1755896326003,0.7458,4848.6,4848.1,1.46507897]
[1755896326176,1.1012,4848.5,4847.8,1.48507897]
[1755896326506,0.3046,4847.9,4847.8,1.48507897]
[1755896326693,0.7458,4847.9,4847.8,0.02]
[1755896330169,0.7458,4847.9,4847.6,0.001]
[1755896330388,0.4472,4847.8,4847.6,0.001]
[1755896330685,0.2903,4847.7,4847.6,0.001]
[1755896330875,4.6033,4847.7,4847.6,0.001]
[1755896331080,5.0505,4847.7,4847.6,0.001]
[1755896331814,0.66,4847.6,4846.3,0.53997897]
[1755896332007,0.2903,4846.4,4846.3,0.53997897]
[1755896332215,0.2903,4846.4,4845.9,0.4472]
[1755896332974,0.4472,4846.7,4845.9,0.4472]
[1755896333679,1.717,4847.5,4846.6,0.2921]
[1755896333913,1.717,4847.5,4846.7,0.02063259]
[1755896334113,0.4472,4847.4,4846.0,1.83017005]
[1755896334617,0.66,4847.3,4845.9,2.27737005]
[1755896334802,0.2903,4846.1,4845.9,0.4472]
[1755896335003,0.66,4847.4,4845.9,0.4472]
[1755896335182,0.4472,4846.7,4845.9,0.4472]
[1755896335713,0.4472,4846.7,4846.0,0.02063557]
[1755896337579,0.4472,4846.7,4845.9,0.4472]
[1755896338401,0.4472,4846.7,4846.0,0.02063557]
[1755896339397,0.4472,4846.7,4845.9,0.4472]
[1755896339932,0.4472,4846.7,4845.8,0.021]
[1755896339933,0.2903,4846.0,4845.8,0.021]
[1755896340230,0.66,4845.9,4845.8,0.021]
[1755896340429,0.9503,4845.9,4845.8,0.021]
[1755896340603,1.3975,4845.9,4845.8,0.021]
[1755896341225,1.5007,4845.9,4845.8,0.021]
[1755896342837,5.1507,4845.9,4845.8,0.021]
[1755896343128,1.0535,4845.9,4845.8,0.021]
[1755896343341,1.5007,4845.9,4845.8,0.021]
[1755896348700,1.3975,4845.9,4845.8,0.021]
[1755896349122,5.0455,4845.9,4845.8,0.021]
[1755896349499,11.3975,4845.9,4845.8,0.021]
[1755896349699,15.0455,4845.9,4845.8,0.021]
[1755896349916,11.3975,4845.9,4845.8,0.021]
[1755896350112,15.0455,4845.9,4845.8,0.021]
[1755896351119,11.63832201,4845.9,4845.8,0.021]
[1755896351316,15.20363201,4845.9,4845.8,0.021]
[1755896351716,15.0455,4845.9,4845.8,0.021]
[1755896352109,11.3975,4845.9,4845.8,0.021]
[1755896352541,5.0455,4845.9,4845.8,0.021]
[1755896353044,1.3975,4845.9,4845.8,0.021]
[1755896353219,3.9383,4845.9,4845.8,0.021]
[1755896353403,3.9383,4845.9,4845.8,0.3131]
[1755896353404,3.648,4845.9,4845.8,0.3131]
[1755896353611,5.366,4845.9,4845.8,0.3131]
[1755896354419,5.366,4845.9,4845.8,0.021]
[1755896355329,5.366,4845.9,4845.8,0.3131]
[1755896356261,6.7635,4845.9,4845.8,0.021]
[1755896356711,5.366,4845.9,4845.8,0.021]
[1755896356915,6.026,4845.9,4845.8,0.021]
[1755896358419,6.3266,4845.9,4845.8,0.021]
[1755896358948,6.4298,4845.9,4845.8,0.021]
[1755896359165,6.8818,4845.9,4845.8,0.021]
[1755896360548,6.4298,4845.9,4845.8,0.021]
[1755896361656,6.8798,4845.9,4845.8,0.021]
[1755896362545,16.8798,4845.9,4845.8,0.021]
[1755896363258,16.8788,4845.9,4845.8,0.021]
[1755896365175,13.2338,4845.9,4845.8,0.021]
[1755896365446,16.8788,4845.9,4845.8,0.021]
[1755896365632,13.2338,4845.9,4845.8,0.021]
[1755896365826,16.8778,4845.9,4845.8,0.021]
[1755896366025,13.2338,4845.9,4845.8,0.021]
[1755896366351,18.20138,4845.9,4845.8,0.021]
[1755896366561,17.74938,4845.9,4845.8,0.021]
[1755896367455,4.10538,4845.9,4845.8,0.021]
[1755896367675,5.4652,4845.9,4845.8,0.3263]
[1755896368148,6.1252,4845.9,4845.8,0.3263]
[1755896370350,0.002,4846.3,4845.8,0.7615]
[1755896370561,3.643,4846.2,4845.9,1.90903864]
[1755896370761,3.643,4846.2,4846.1,0.3053]
[1755896372242,3.643,4846.2,4846.1,0.7405]
[1755896372466,0.002,4846.3,4846.1,0.7405]
[1755896372675,3.643,4846.2,4846.1,0.3053]
[1755896373195,0.002,4846.3,4846.1,0.7405]
[1755896373416,3.642,4846.6,4846.1,1.360241]
[1755896373689,3.644,4846.8,4846.2,2.60714587]
[1755896373989,3.644,4846.8,4846.7,0.3053]
[1755896373990,0.002,4846.8,4846.7,0.3053]
[1755896374295,0.002,4846.8,4846.7,0.7405]
[1755896374587,0.002,4846.8,4846.7,0.76113259]
[1755896374889,0.002,4846.8,4846.7,0.7405]
[1755896375091,0.002,4846.8,4846.7,0.98937249]
[1755896376998,0.002,4846.8,4846.7,1.360151]
[1755896377974,0.002,4846.8,4846.7,2.82653847]
[1755896378175,0.002,4846.8,4846.7,1.360151]
[1755896378474,0.002,4846.8,4846.7,2.82585587]
[1755896378812,0.002,4846.8,4846.7,1.360151]
[1755896379111,0.002,4846.8,4846.7,1.4961661]
[1755896380218,0.002,4846.8,4846.7,2.82559396]
[1755896380415,0.002,4846.8,4846.7,2.92879396]
[1755896380875,0.002,4846.8,4846.7,1.48398359]
[1755896381214,0.002,4846.8,4846.7,1.463351]
[1755896381401,0.002,4846.8,4846.7,1.48398359]
[1755896381595,0.002,4846.8,4846.7,1.81539895]
[1755896382109,0.002,4846.8,4846.7,7.283569]
[1755896382404,0.002,4846.8,4846.7,5.43276636]
[1755896383014,0.002,4848.5,4846.7,5.43276636]
[1755896383215,0.002,4848.5,4847.1,16.91029946]
[1755896383420,0.002,4848.5,4847.2,0.56452869]
[1755896383586,0.002,4848.5,4847.2,0.99972869]
[1755896383927,0.002,4848.5,4847.2,1.10292869]
[1755896384205,0.002,4848.5,4847.2,1.08229823]
[1755896384407,0.002,4848.5,4847.6,1.4627141]
[1755896384614,0.002,4848.5,4847.7,0.51778274]
[1755896384921,0.002,4848.5,4847.7,2.51889684]
[1755896385276,0.002,4848.5,4847.7,1.05618274]
[1755896386199,0.002,4848.5,4847.7,6.75826851]
[1755896386371,0.002,4848.5,4847.7,5.39928411]
[1755896387206,0.002,4848.5,4847.7,22.26536711]
[1755896387410,0.002,4848.5,4848.2,18.37010076]
[1755896387704,0.002,4848.5,4848.4,0.4085]
[1755896388319,0.002,4849.2,4848.4,0.4085]
[1755896388320,0.002,4849.2,4848.4,0.96171476]
[1755896388625,0.002,4849.2,4848.5,0.21063969]
[1755896388807,0.002,4849.2,4849.1,0.2876]
[1755896389016,0.002,4849.2,4849.1,0.58081476]
[1755896389499,0.002,4849.2,4849.1,0.66339776]
[1755896391998,0.2988,4849.2,4849.1,0.37579776]
[1755896392422,0.002,4849.2,4849.1,0.56695476]
[1755896392592,0.002,4849.2,4849.1,0.67029024]
[1755896393822,0.002,4849.2,4849.1,0.38269024]
[1755896394148,0.002,4849.2,4849.1,0.27935476]
[1755896394301,0.002,4849.2,4849.1,0.56695476]
[1755896394505,0.002,4849.2,4849.1,0.37694]
[1755896394747,0.002,4849.2,4849.1,0.56692009]
[1755896395536,0.002,4849.2,4849.1,0.58754247]
[1755896396229,0.002,4849.2,4849.1,0.56692009]
[1755896396433,0.002,4849.5,4849.1,0.58078547]
[1755896396757,0.002,4850.3,4849.6,0.66]
[1755896397055,1.05515846,4856.2,4849.2,7.74038009]
[1755896397056,0.4615,4853.0,4850.7,16.91029946]
[1755896397367,0.3168,4851.8,4851.1,1.45752369]
[1755896397530,0.3168,4851.8,4850.8,1.90698009]
[1755896397531,0.3168,4851.8,4851.2,0.18998009]
[1755896397732,0.4615,4851.7,4851.3,0.18998009]
[1755896397920,0.3168,4851.8,4851.4,0.21059269]
[1755896397921,0.02,4851.8,4851.4,0.21059269]
[1755896398123,0.02,4852.8,4851.7,17.19789946]
[1755896398359,0.082524,4855.6,4852.7,18.36782315]
[1755896398561,0.4615,4855.0,4853.7,0.2876]
[1755896398775,0.4615,4855.0,4853.7,0.84721055]
[1755896399080,0.3168,4853.8,4853.7,0.65148009]
[1755896399270,0.02,4853.8,4853.7,1.56278563]
[1755896399472,0.02,4853.8,4853.7,1.22548218]
[1755896399624,0.02,4853.8,4853.7,0.73847935]
[1755896399824,0.02,4853.8,4853.7,0.47758009]
[1755896400024,0.02,4853.8,4853.7,0.18998009]
[1755896400241,0.3168,4853.8,4853.7,0.80863609]
[1755896400444,0.7783,4853.8,4853.7,0.18998009]
[1755896400647,0.3168,4853.8,4853.7,0.18998009]
[1755896400845,0.7783,4853.8,4853.7,0.18998009]
[1755896401345,2.4943,4853.8,4853.7,0.18998009]
[1755896401542,2.74373,4853.8,4853.7,0.18998009]
[1755896401772,3.40373,4853.8,4853.7,0.18998009]
[1755896402354,2.74373,4853.8,4853.7,0.18998009]
[1755896402556,2.4943,4853.8,4852.6,0.0206075]
[1755896402782,2.0328,4853.8,4852.7,0.18920009]
[1755896403000,0.4615,4853.7,4852.8,0.18920009]
[1755896403209,0.4615,4853.7,4852.9,0.18920009]
[1755896403385,0.66,4852.8,4850.1,0.4664]
[1755896403708,10.0,4853.6,4852.8,0.02]
[1755896404460,0.4615,4853.7,4852.8,0.02]
[1755896404667,0.02,4853.8,4852.8,0.02]
[1755896405293,0.02,4853.8,4852.9,0.4664]
[1755896405792,0.02,4853.8,4852.8,0.02]
[1755896406107,0.02,4853.8,4853.7,0.2876]
[1755896406635,0.02,4854.8,4853.8,2.46234877]
[1755896406889,13.627,4857.6,4854.7,0.2876]
[1755896406890,1.716,4857.0,4854.7,0.2876]
[1755896407064,10.0,4857.6,4854.8,11.01561417]
[1755896407263,10.0,4857.6,4856.4,0.2876]
[1755896407464,0.4615,4857.5,4856.2,1.716]
[1755896407664,0.4615,4857.5,4855.6,16.91029946]
[1755896407665,0.02,4857.8,4856.5,19.851129]
[1755896407951,0.02,4857.8,4856.6,1.716]
[1755896408195,0.02,4857.8,4856.7,3.626]
[1755896408378,0.02,4857.8,4856.7,4.0924]
[1755896408886,0.02,4857.8,4856.6,1.666]
[1755896409090,0.4615,4857.7,4856.6,5.292]
[1755896409411,0.02,4857.8,4857.6,17.19789946]
[1755896409562,0.02,4857.8,4857.7,0.02058587]
[1755896409756,0.02,4857.8,4857.7,0.30818587]
[1755896409957,0.02,4857.8,4857.7,0.754]
[1755896410162,0.02,4857.8,4857.7,0.2876]
[1755896410460,0.7783,4857.8,4856.4,1.715]
[1755896410658,0.3168,4857.8,4856.4,1.715]
[1755896410875,0.3168,4857.8,4856.5,0.02059096]
[1755896411207,0.4615,4857.7,4855.9,3.651]
[1755896411510,0.4615,4857.7,4856.0,0.48699308]
[1755896411661,0.4615,4857.7,4856.0,0.4664]
[1755896411855,0.4615,4857.7,4855.8,3.651]
[1755896412354,0.66,4857.6,4855.6,1.715]
[1755896412559,0.66,4857.6,4855.7,3.65]
[1755896412754,0.66,4857.4,4855.6,1.715]
[1755896412961,0.66,4857.2,4855.3,3.649]
[1755896413196,0.66,4857.2,4853.7,5.36]
[1755896413197,0.66,4857.0,4854.3,0.4664]
[1755896413514,1.10995,4856.9,4854.4,0.21814]
[1755896413660,1.1215,4856.8,4854.2,3.648]
[1755896413863,0.66,4856.6,4854.2,3.648]
[1755896414080,0.66,4856.4,4854.2,3.648]
[1755896414309,0.66,4856.2,4854.2,3.648]
[1755896414516,0.66,4856.0,4854.0,1.715]
[1755896414840,0.66,4855.8,4854.0,1.715]
[1755896415044,0.4615,4855.9,4854.0,1.715]
[1755896415336,0.4615,4856.9,4855.8,0.2876]
[1755896415500,0.4615,4856.9,4855.9,0.20818982]
[1755896415501,1.21765,4856.8,4855.9,0.20818982]
[1755896415690,1.715,4857.2,4856.0,0.18759632]
[1755896415894,0.4615,4856.7,4856.1,0.18759632]
[1755896416130,0.4615,4856.7,4853.6,0.4664]
[1755896416131,0.4615,4856.7,4856.2,0.18759632]
[1755896416331,0.2968,4856.3,4855.8,0.02]
[1755896416628,1.715,4856.2,4855.9,0.18769834]
[1755896416830,1.02798,4856.1,4856.0,0.18769834]
[1755896417127,1.32478,4856.1,4856.0,0.18769834]
[1755896417331,0.66,4856.0,4855.8,0.02]
[1755896417535,0.2968,4855.9,4855.8,0.02]
[1755896417837,0.7583,4855.9,4855.8,0.02]
[1755896418011,1.503898,4855.9,4855.8,0.02]
[1755896418596,2.163898,4855.9,4855.8,0.02]
[1755896419299,5.815898,4855.9,4855.8,0.02]
[1755896419696,2.163898,4855.9,4855.8,0.02]
[1755896419900,2.163898,4855.9,4854.8,0.02]
[1755896419901,3.66,4855.8,4854.8,0.02]
[1755896420101,0.66,4854.8,4851.2,0.4631]
[1755896420334,13.11395762,4854.9,4851.2,0.4631]
[1755896420335,0.66,4854.6,4851.2,0.4631]
[1755896420523,0.4708,4854.5,4851.2,0.4631]
[1755896420849,0.4708,4854.5,4850.8,0.02]
[1755896420850,0.66,4854.4,4850.8,0.02]
[1755896421144,0.2903,4851.9,4850.8,0.02]
[1755896421300,0.7611,4851.9,4850.8,0.02]
[1755896421501,1.4211,4851.9,4850.8,0.02]
[1755896422735,1.4211,4851.9,4850.8,0.021]
[1755896424305,5.0911,4851.9,4850.8,0.021]
[1755896424722,5.0911,4851.9,4851.3,0.001]
[1755896425453,15.0911,4851.9,4851.3,0.001]
[1755896425606,16.60021,4851.9,4851.3,0.001]
[1755896428816,16.70341,4851.9,4851.3,0.001]
[1755896429346,0.66,4851.8,4851.3,0.001]
[1755896429649,1.0535,4851.4,4851.3,0.001]
[1755896429849,11.8035,4851.4,4851.3,0.001]
[1755896430147,13.50173,4851.4,4851.3,0.001]
[1755896430475,23.50173,4851.4,4851.3,0.001]
[1755896430821,23.49973,4851.4,4851.3,0.001]
[1755896431017,23.50273,4851.4,4851.3,0.001]
[1755896432644,23.50073,4851.4,4851.3,0.001]
[1755896433524,19.83073,4851.4,4851.3,0.001]
[1755896433725,23.49873,4851.4,4851.3,0.001]
[1755896435147,23.49873,4851.4,4850.8,0.021]
[1755896435148,0.66,4851.3,4850.8,0.021]
[1755896435357,3.2275,4850.9,4850.8,0.021]
[1755896435648,4.7195,4850.9,4850.8,0.021]
[1755896436152,5.1903,4850.9,4850.8,0.021]
[1755896437575,0.66,4850.4,4849.8,0.02]
[1755896437881,0.9503,4849.9,4849.8,0.02]
[1755896438172,10.73973,4849.9,4849.8,0.02]
[1755896438360,10.73973,4849.9,4849.8,0.021]
[1755896438361,11.21053,4849.9,4849.8,0.021]
[1755896439052,11.293171,4849.9,4849.8,0.021]
[1755896439248,11.293171,4849.9,4847.3,0.001]
[1755896439249,2.834,4849.4,4847.3,0.001]
[1755896439450,1.0535,4848.9,4847.3,0.001]
[1755896439651,6.11045,4848.9,4847.3,0.001]
[1755896439857,6.58125,4848.9,4847.3,0.001]
[1755896440542,19.58125,4848.9,4847.3,0.001]
[1755896440743,3.66,4848.8,4847.3,0.001]
[1755896440937,1.0535,4847.9,4847.3,0.001]
[1755896441170,6.24455,4847.9,4847.3,0.001]
[1755896441343,7.00565,4847.9,4847.3,0.001]
[1755896442043,10.00565,4847.9,4847.3,0.001]
[1755896442479,20.00565,4847.9,4847.3,0.001]
[1755896442677,3.66,4847.8,4847.3,0.001]
[1755896442984,1.0535,4847.4,4847.3,0.001]
[1755896443185,4.7135,4847.4,4847.3,0.001]
[1755896443349,5.1843,4847.4,4847.3,0.001]
[1755896443677,1.20747844,4847.4,4847.3,0.001]
[1755896443974,5.38,4847.4,4847.3,0.3066]
[1755896444318,6.2103,4847.4,4847.3,0.001]
[1755896444596,6.58,4847.4,4847.3,0.001]
[1755896445005,1.717,4847.4,4847.3,0.3066]
[1755896445160,5.382,4847.4,4847.3,0.7697]
[1755896445354,1.717,4847.4,4847.3,0.7697]
[1755896445582,5.382,4847.4,4847.3,0.7697]
[1755896446163,6.042,4847.4,4847.3,0.7697]
[1755896446504,5.402,4847.4,4847.3,0.7697]
[1755896446957,6.062,4847.4,4847.3,0.7697]
[1755896450202,6.062,4847.4,4847.3,0.3066]
[1755896450708,8.4159,4847.4,4847.3,0.001]
[1755896451495,18.4159,4847.4,4847.3,0.001]
[1755896451926,18.4159,4847.4,4846.8,0.021]
[1755896451927,2.834,4846.9,4846.8,0.021]
[1755896452228,15.183,4846.9,4846.8,0.021]
[1755896452435,2.834,4846.7,4845.5,0.001]
[1755896452735,0.66,4846.3,4845.5,0.001]
[1755896453063,0.66,4846.1,4845.5,0.001]
[1755896453190,0.66,4845.9,4845.5,0.001]
[1755896453391,0.66,4845.7,4845.5,0.001]
[1755896453592,4.34,4845.6,4845.5,0.001]
[1755896454009,4.4432,4845.6,4845.5,0.001]
[1755896454412,2.49704441,4847.2,4845.5,0.7428]
[1755896454413,0.32304441,4847.2,4845.5,0.7428]
[1755896454607,1.718,4848.1,4845.6,0.4467]
[1755896454820,3.703,4848.0,4845.6,0.4467]
[1755896455431,1.718,4848.1,4847.9,0.2951]
[1755896455635,1.718,4848.1,4848.0,0.19023159]
[1755896455933,5.42,4848.1,4848.0,0.48533159]
[1755896456299,5.42,4848.1,4848.0,0.2951]
[1755896456501,5.42,4848.1,4848.0,0.7418]
[1755896456740,1.718,4848.1,4848.0,0.7418]
[1755896456914,5.42,4848.1,4848.0,0.7418]
[1755896458245,5.42,4848.1,4848.0,0.93198865]
[1755896458732,6.08,4848.1,4848.0,0.93198865]
[1755896459535,5.83215856,4848.1,4848.0,0.93198865]
[1755896459851,5.17215856,4848.1,4848.0,0.93198865]
[1755896460213,5.17215856,4848.1,4848.0,0.93205531]
[1755896460412,0.002,4848.6,4848.0,0.93205531]
[1755896460643,0.002,4848.6,4848.1,0.65758194]
[1755896460852,3.696,4848.6,4848.5,0.2951]
[1755896461052,3.696,4848.6,4848.5,0.48535531]
[1755896461250,3.696,4848.6,4848.5,0.93205531]
[1755896461552,4.356,4848.6,4848.5,0.19025531]
[1755896462641,5.7131,4848.6,4848.5,0.19025531]
[1755896463031,5.2684,4848.6,4848.5,0.19025531]
[1755896463231,5.7131,4848.6,4848.5,0.19025531]
[1755896463761,5.2684,4848.6,4848.5,0.19025531]
[1755896463912,5.4624,4848.6,4848.5,0.19025531]
[1755896464334,1.162,4848.6,4848.5,0.19025531]
[1755896464568,10.0,4849.7,4848.5,0.48535531]
[1755896464739,10.0,4849.7,4849.5,0.1032]
[1755896464915,10.0,4849.7,4849.6,0.46845531]
[1755896465115,10.0,4849.7,4849.6,0.1712]
[1755896465316,10.0,4849.7,4849.6,0.36146534]
[1755896465512,3.721,4849.8,4849.6,0.36146534]
[1755896465712,3.721,4849.8,4849.7,0.19026534]
[1755896465911,4.4842,4849.8,4849.7,0.19026534]
[1755896466149,4.4842,4849.8,4849.7,0.36146534]
[1755896466150,3.721,4849.8,4849.7,0.36146534]
[1755896466450,4.381,4849.8,4849.7,0.36146534]
[1755896470733,5.57712,4849.8,4849.7,0.19026534]
[1755896471053,5.57212,4849.8,4849.7,0.19026534]
[1755896472047,0.66,4849.7,4848.8,0.02]
[1755896472224,0.963,4848.9,4848.8,0.02]
[1755896472421,6.092,4848.9,4848.8,0.02]
[1755896472849,6.395,4848.9,4848.8,0.02]
[1755896473064,0.66,4848.8,4847.8,0.02]
[1755896473265,3.721,4848.7,4847.8,0.02]
[1755896473463,1.31427,4848.6,4847.8,0.02]
[1755896473627,0.66,4848.4,4847.8,0.02]
[1755896473825,0.66,4848.2,4847.8,0.02]
[1755896474038,10.0,4848.5,4847.8,0.02]
[1755896474267,4.384,4848.4,4847.8,0.02]
[1755896474474,0.4447,4848.8,4847.8,0.02]
[1755896474475,0.66,4848.7,4847.8,0.02]
[1755896474642,0.66,4848.5,4847.8,0.02]
[1755896478955,0.66,4848.5,4847.8,0.021]
[1755896479150,0.002,4848.4,4847.8,0.021]
[1755896479357,3.715,4848.3,4847.8,0.021]
[1755896479673,3.715,4848.3,4848.2,0.3127]
[1755896480061,0.002,4848.4,4848.2,0.3127]
[1755896480062,0.002,4848.4,4848.2,0.63]
[1755896480263,3.715,4848.4,4848.2,0.63]
[1755896480462,3.715,4848.4,4848.2,0.3127]
[1755896480664,0.002,4848.4,4848.3,0.3173]
[1755896480879,0.002,4848.4,4848.3,0.75382578]
[1755896481357,0.002,4848.4,4848.3,0.7332]
[1755896482045,0.002,4848.4,4848.3,0.4159]
[1755896482356,0.002,4848.9,4848.3,0.7332]
[1755896482555,0.002,4848.9,4848.4,1.47962224]
[1755896482884,0.1232,4849.8,4848.9,8.671556]
[1755896482885,0.02,4849.8,4848.9,8.671556]
[1755896483094,0.02,4849.8,4849.7,13.13635762]
[1755896483257,0.02,4849.8,4849.7,13.23955762]
[1755896483590,0.02,4849.8,4849.7,13.55685762]
[1755896483903,0.02,4849.8,4849.7,15.37876224]
[1755896484189,0.00391744,4849.8,4849.7,15.56845237]
[1755896484398,0.00391744,4849.8,4849.7,0.60559013]
[1755896484796,0.00391744,4849.8,4849.7,13.74654775]
[1755896485009,0.00591744,4849.8,4849.7,13.74654775]
[1755896485299,0.022,4850.8,4849.7,13.74654775]
[1755896485445,0.1032,4851.7,4850.7,12.82365762]
[1755896485648,0.1032,4851.7,4851.6,0.3127]
[1755896485951,0.1032,4851.7,4851.6,0.50239013]
[1755896486166,0.4915,4852.8,4851.6,2.06533824]
[1755896486370,0.022,4852.8,4851.7,0.21030146]
[1755896486597,0.022,4852.8,4851.7,0.50239013]
[1755896487101,0.66,4852.7,4851.7,0.4254698]
[1755896487382,0.1052,4852.3,4851.7,0.18969013]
[1755896487582,1.4512,4851.8,4851.7,0.18969013]
[1755896488067,0.66,4851.7,4851.3,0.1032]
[1755896488257,0.022,4851.8,4851.6,0.3127]
[1755896488456,0.022,4851.8,4851.7,0.31335965]
[1755896488662,0.022,4851.8,4851.7,0.62605965]
[1755896488847,0.022,4851.8,4851.7,0.90074832]
[1755896489391,0.022,4851.8,4851.7,0.60544832]
[1755896489595,0.022,4851.8,4851.7,0.29274832]
[1755896490502,0.02,4855.8,4851.7,27.91918294]
[1755896490503,10.0,4853.6,4851.7,27.91918294]
[1755896490675,10.0,4853.6,4852.7,0.1032]
[1755896490876,10.0,4853.6,4852.7,0.60544832]
[1755896491505,0.4695,4854.1,4852.7,0.60544832]
[1755896491800,0.4695,4854.1,4852.7,0.9213554]
[1755896492418,0.4695,4854.1,4852.7,0.62544521]
[1755896492602,4.459,4854.3,4852.7,0.29213813]
[1755896492603,0.66,4853.5,4852.7,0.29213813]
[1755896492773,0.66,4853.5,4852.7,0.1032]
[1755896492971,1.717,4854.4,4852.7,0.1032]
[1755896492972,0.4695,4856.9,4852.8,2.420986]
[1755896493283,0.4895,4856.8,4853.8,2.372446]
[1755896493596,0.4895,4856.8,4854.6,13.13635762]
[1755896493903,0.66,4855.7,4854.7,0.18898393]
[1755896494103,0.68,4856.8,4854.7,0.18898393]
[1755896494104,0.66,4855.4,4854.7,0.18898393]
[1755896494496,1.716,4856.0,4854.7,0.50168393]
[1755896494901,1.716,4856.0,4854.7,0.18898393]
[1755896495082,0.66,4855.2,4854.7,0.18898393]
[1755896495283,1.4492,4854.8,4854.7,0.18898393]
[1755896496408,1.76572,4854.8,4854.7,0.18898393]
[1755896496572,0.02,4854.8,4854.7,0.18898393]
[1755896497081,0.4895,4854.8,4854.7,0.18898393]
[1755896498704,1.4492,4854.8,4854.7,0.18898393]
[1755896499120,5.2702,4854.8,4854.7,0.18898393]
[1755896501489,0.66,4854.7,4853.8,0.02]
[1755896501690,1.1295,4854.7,4853.9,0.18799395]
[1755896501890,1.1295,4854.7,4854.0,0.18799305]
[1755896502073,1.1295,4854.7,4854.1,0.18799305]
[1755896502273,1.1295,4854.7,4854.2,0.18799305]
[1755896502509,0.66,4854.5,4854.3,0.18799305]
[1755896502711,0.66,4854.3,4853.8,0.02]
[1755896503008,0.66,4854.3,4853.9,0.1881793]
[1755896503181,0.66,4854.1,4854.0,0.1881793]
[1755896503387,0.9597,4854.1,4854.0,0.1881793]
[1755896503582,1.74362,4854.1,4854.0,0.1881793]
[1755896503818,1.715,4854.1,4854.0,0.1881793]
[1755896504015,10.0,4854.3,4854.0,14.76453692]
[1755896504317,0.02,4858.8,4854.0,14.76453692]
[1755896504318,0.4695,4858.2,4854.4,1.898]
[1755896504476,0.1032,4858.1,4855.7,13.23955762]
[1755896504674,4.2935,4858.2,4855.7,16.58273692]
[1755896504675,3.824,4858.2,4855.7,16.58273692]
[1755896504874,3.824,4858.2,4856.7,0.1032]
[1755896505107,3.824,4858.2,4856.7,0.6040793]